[Event "Early-Titled-Tuesday-Blitz-February-06-2024"]
[Site "Chess.com"]
[Date "2024.02.06"]
[Round "4"]
[White "aghasiyevkamal"]
[Black "FlemingA"]
[Result "1/2-1/2"]
[WhiteElo "2664"]
[BlackElo "2436"]
[TimeControl "180+1"]
[EndTime "8:39:34 PST"]
[Termination "Game drawn by repetition"]

1. d4 {[%clk 0:02:56.4]} 1... g6 {[%clk 0:02:59.2]} 2. c4 {[%clk 0:02:50]} 2...
Bg7 {[%clk 0:02:59.3]} 3. Nc3 {[%clk 0:02:49.9]} 3... d6 {[%clk 0:02:58.1]} 4.
e4 {[%clk 0:02:50.1]} 4... Nc6 {[%clk 0:02:54.1]} 5. d5 {[%clk 0:02:43.6]} 5...
Nb8 {[%clk 0:02:53]} 6. Nf3 {[%clk 0:02:43.1]} 6... Nf6 {[%clk 0:02:52.3]} 7.
Be2 {[%clk 0:02:42.5]} 7... O-O {[%clk 0:02:52.3]} 8. O-O {[%clk 0:02:43]} 8...
Bg4 {[%clk 0:02:52.5]} 9. Be3 {[%clk 0:02:42]} 9... c6 {[%clk 0:02:51.3]} 10.
Nd2 {[%clk 0:02:40.3]} 10... Bxe2 {[%clk 0:02:50.2]} 11. Qxe2 {[%clk 0:02:40.6]}
11... Nbd7 {[%clk 0:02:51.1]} 12. dxc6 {[%clk 0:02:27.1]} 12... bxc6 {[%clk
0:02:50.8]} 13. c5 {[%clk 0:02:26.7]} 13... Nxc5 {[%clk 0:02:39.2]} 14. Bxc5
{[%clk 0:02:24.9]} 14... dxc5 {[%clk 0:02:39.5]} 15. Nc4 {[%clk 0:02:24.9]}
15... Qc7 {[%clk 0:02:25.2]} 16. Na4 {[%clk 0:02:19.9]} 16... Nd7 {[%clk
0:02:16.5]} 17. Rad1 {[%clk 0:02:09.6]} 17... Rfd8 {[%clk 0:02:04.2]} 18. b3
{[%clk 0:01:57.9]} 18... Bd4 {[%clk 0:02:01.5]} 19. Nab2 {[%clk 0:01:48.9]}
19... Nb6 {[%clk 0:01:52.9]} 20. Nd3 {[%clk 0:01:43.3]} 20... Nxc4 {[%clk
0:01:35.1]} 21. bxc4 {[%clk 0:01:43.5]} 21... Qd7 {[%clk 0:01:22.6]} 22. Qc2
{[%clk 0:01:35.2]} 22... Qg4 {[%clk 0:01:13.3]} 23. Rde1 {[%clk 0:01:33.5]}
23... Rab8 {[%clk 0:01:04.4]} 24. Kh1 {[%clk 0:01:32.9]} 24... Rb7 {[%clk
0:00:52.8]} 25. f4 {[%clk 0:01:21.5]} 25... Rdb8 {[%clk 0:00:33.5]} 26. h3
{[%clk 0:01:21.6]} 26... Qh4 {[%clk 0:00:31]} 27. Qe2 {[%clk 0:01:11.9]} 27...
Qf6 {[%clk 0:00:21.9]} 28. f5 {[%clk 0:01:01.5]} 28... Qg5 {[%clk 0:00:22.2]}
29. Qf3 {[%clk 0:01:00.9]} 29... f6 {[%clk 0:00:21.3]} 30. fxg6 {[%clk
0:00:51.2]} 30... hxg6 {[%clk 0:00:22.2]} 31. e5 {[%clk 0:00:51.6]} 31... f5
{[%clk 0:00:21.5]} 32. Qxc6 {[%clk 0:00:50.2]} 32... Kg7 {[%clk 0:00:20.6]} 33.
Nf4 {[%clk 0:00:49.6]} 33... Kh7 {[%clk 0:00:18]} 34. Ne6 {[%clk 0:00:44.7]}
34... Qg3 {[%clk 0:00:17.4]} 35. Nxd4 {[%clk 0:00:36.4]} 35... cxd4 {[%clk
0:00:18.3]} 36. Qd5 {[%clk 0:00:35.3]} 36... Rb2 {[%clk 0:00:16]} 37. Rg1 {[%clk
0:00:33.9]} 37... Rd2 {[%clk 0:00:11.7]} 38. Ref1 {[%clk 0:00:28.8]} 38... Rbb2
{[%clk 0:00:11.6]} 39. Rf3 {[%clk 0:00:27.3]} 39... Qg5 {[%clk 0:00:11.9]} 40.
Qf7+ {[%clk 0:00:26.2]} 40... Kh8 {[%clk 0:00:09.1]} 41. Qf8+ {[%clk 0:00:22.7]}
41... Kh7 {[%clk 0:00:09.5]} 42. Qf7+ {[%clk 0:00:19.6]} 42... Kh8 {[%clk
0:00:09.8]} 43. Qf8+ {[%clk 0:00:15.2]} 43... Kh7 {[%clk 0:00:10.3]} 44. Qf7+
{[%clk 0:00:15.6]} 1/2-1/2

[Event "Early-Titled-Tuesday-Blitz-February-06-2024"]
[Site "Chess.com"]
[Date "2024.02.06"]
[Round "4"]
[White "soloderisas"]
[Black "smotherhubbard"]
[Result "1-0"]
[WhiteElo "2517"]
[BlackElo "2361"]
[TimeControl "180+1"]
[EndTime "8:39:34 PST"]
[Termination "soloderisas won by checkmate"]

1. d4 {[%clk 0:03:00.9]} 1... Nf6 {[%clk 0:02:59.5]} 2. Nf3 {[%clk 0:03:01.5]}
2... e6 {[%clk 0:02:59.3]} 3. Bf4 {[%clk 0:03:02.1]} 3... c5 {[%clk 0:02:58.4]}
4. e3 {[%clk 0:03:02.5]} 4... b6 {[%clk 0:02:58.5]} 5. Nbd2 {[%clk 0:03:03]}
5... Bb7 {[%clk 0:02:59]} 6. Nc4 {[%clk 0:03:03.3]} 6... Ne4 {[%clk 0:02:50.8]}
7. Bd3 {[%clk 0:02:59.8]} 7... d6 {[%clk 0:02:40.2]} 8. dxc5 {[%clk 0:02:53.1]}
8... Nxc5 {[%clk 0:02:39.1]} 9. Be2 {[%clk 0:02:49.9]} 9... d5 {[%clk 0:02:27]}
10. Nce5 {[%clk 0:02:50.4]} 10... Nbd7 {[%clk 0:02:27.1]} 11. c4 {[%clk
0:02:24.1]} 11... Be7 {[%clk 0:02:17.2]} 12. cxd5 {[%clk 0:02:21.8]} 12... Bxd5
{[%clk 0:02:17]} 13. Bb5 {[%clk 0:02:08.5]} 13... a6 {[%clk 0:02:15.2]} 14. Nxd7
{[%clk 0:02:00.1]} 14... Nxd7 {[%clk 0:02:14.9]} 15. Ba4 {[%clk 0:01:54.6]}
15... Bb4+ {[%clk 0:02:13.9]} 16. Nd2 {[%clk 0:01:42]} 16... O-O {[%clk
0:01:49.3]} 17. O-O {[%clk 0:01:40.3]} 17... Nc5 {[%clk 0:01:48.2]} 18. Bc2
{[%clk 0:01:38.8]} 18... Qf6 {[%clk 0:01:42.8]} 19. a3 {[%clk 0:01:20.6]} 19...
Bxd2 {[%clk 0:01:35.6]} 20. Qxd2 {[%clk 0:01:20.4]} 20... Be4 {[%clk 0:01:35.5]}
21. Bxe4 {[%clk 0:01:14.1]} 21... Nxe4 {[%clk 0:01:36.4]} 22. Qb4 {[%clk
0:01:11.8]} 22... Nc5 {[%clk 0:01:20.1]} 23. Qxb6 {[%clk 0:01:01.8]} 23... Nd3
{[%clk 0:01:20.1]} 24. Bd6 {[%clk 0:00:49.8]} 24... Rfc8 {[%clk 0:01:00.6]} 25.
b4 {[%clk 0:00:45.4]} 25... Rc2 {[%clk 0:00:57.1]} 26. Bg3 {[%clk 0:00:45.1]}
26... h5 {[%clk 0:00:38.5]} 27. Rad1 {[%clk 0:00:43.1]} 27... Nb2 {[%clk
0:00:32.1]} 28. Rd4 {[%clk 0:00:35.4]} 28... g5 {[%clk 0:00:23]} 29. h4 {[%clk
0:00:34.3]} 29... g4 {[%clk 0:00:20.4]} 30. Qb7 {[%clk 0:00:29.6]} 30... Rac8
{[%clk 0:00:18.8]} 31. Qxa6 {[%clk 0:00:25.6]} 31... Rc1 {[%clk 0:00:18.2]} 32.
Kh2 {[%clk 0:00:20.4]} 32... Qf5 {[%clk 0:00:16]} 33. Rf4 {[%clk 0:00:16.5]}
33... Qb1 {[%clk 0:00:14.7]} 34. Qb7 {[%clk 0:00:14]} 34... Rxf1 {[%clk
0:00:11.6]} 35. Qxf7+ {[%clk 0:00:13.3]} 35... Kh8 {[%clk 0:00:10.4]} 36. Qxh5+
{[%clk 0:00:13.3]} 36... Kg8 {[%clk 0:00:10]} 37. Qg5+ {[%clk 0:00:12.6]} 37...
Kh8 {[%clk 0:00:07.7]} 38. Rf8+ {[%clk 0:00:11.1]} 38... Rxf8 {[%clk 0:00:03]}
39. Be5+ {[%clk 0:00:11.2]} 39... Kh7 {[%clk 0:00:02.4]} 40. Qg7# {[%clk
0:00:11.7]} 1-0

[Event "Early-Titled-Tuesday-Blitz-February-06-2024"]
[Site "Chess.com"]
[Date "2024.02.06"]
[Round "4"]
[White "Sina_Movahed"]
[Black "kpio91"]
[Result "0-1"]
[WhiteElo "3014"]
[BlackElo "2840"]
[TimeControl "180+1"]
[EndTime "8:39:35 PST"]
[Termination "kpio91 won by resignation"]

1. e4 {[%clk 0:03:00.9]} 1... e6 {[%clk 0:03:00.6]} 2. d4 {[%clk 0:03:00.8]}
2... d5 {[%clk 0:03:01.3]} 3. e5 {[%clk 0:03:01.5]} 3... c5 {[%clk 0:03:00.5]}
4. c3 {[%clk 0:03:02.2]} 4... Bd7 {[%clk 0:02:58.2]} 5. Nf3 {[%clk 0:03:01.9]}
5... Qb6 {[%clk 0:02:57.5]} 6. Be2 {[%clk 0:02:58.9]} 6... Bb5 {[%clk 0:02:54]}
7. dxc5 {[%clk 0:02:44.2]} 7... Bxc5 {[%clk 0:02:51.3]} 8. b4 {[%clk 0:02:44.5]}
8... Bf8 {[%clk 0:02:46.6]} 9. Be3 {[%clk 0:02:30.4]} 9... Bxe2 {[%clk
0:02:35.7]} 10. Qxe2 {[%clk 0:02:31.3]} 10... Qc7 {[%clk 0:02:33.9]} 11. O-O
{[%clk 0:02:27]} 11... Ne7 {[%clk 0:02:14]} 12. Na3 {[%clk 0:02:26.7]} 12... Nf5
{[%clk 0:02:10]} 13. Nb5 {[%clk 0:02:12.7]} 13... Qd7 {[%clk 0:02:09]} 14. Bc5
{[%clk 0:02:06.1]} 14... a6 {[%clk 0:01:56]} 15. Nbd4 {[%clk 0:02:00.9]} 15...
Bxc5 {[%clk 0:01:37.2]} 16. bxc5 {[%clk 0:02:01.8]} 16... Ne7 {[%clk 0:01:35.8]}
17. Rab1 {[%clk 0:02:00.4]} 17... Nbc6 {[%clk 0:01:35.1]} 18. Rb6 {[%clk
0:01:54.9]} 18... O-O {[%clk 0:01:27]} 19. Rfb1 {[%clk 0:01:50.7]} 19... Nd8
{[%clk 0:01:24.2]} 20. Nd2 {[%clk 0:01:38.2]} 20... Qc7 {[%clk 0:01:22.2]} 21.
N2b3 {[%clk 0:01:38.2]} 21... Ndc6 {[%clk 0:01:12]} 22. f4 {[%clk 0:01:34.9]}
22... Rac8 {[%clk 0:01:07.8]} 23. Qf2 {[%clk 0:01:28.1]} 23... Qd7 {[%clk
0:01:03.6]} 24. h3 {[%clk 0:01:13.1]} 24... Rc7 {[%clk 0:01:01.8]} 25. Nd2
{[%clk 0:01:06.6]} 25... Na5 {[%clk 0:00:56.4]} 26. Rd6 {[%clk 0:00:51.8]} 26...
Qc8 {[%clk 0:00:55.5]} 27. g4 {[%clk 0:00:40.3]} 27... Rxc5 {[%clk 0:00:41.4]}
28. f5 {[%clk 0:00:40.5]} 28... Rxc3 {[%clk 0:00:40.6]} 29. f6 {[%clk
0:00:35.8]} 29... Ng6 {[%clk 0:00:38.9]} 30. fxg7 {[%clk 0:00:35.1]} 30... Kxg7
{[%clk 0:00:21.2]} 31. Rf1 {[%clk 0:00:23.8]} 31... Nc4 {[%clk 0:00:16.5]} 32.
Nxc4 {[%clk 0:00:23]} 32... Rxc4 {[%clk 0:00:15.4]} 33. h4 {[%clk 0:00:20.8]}
33... Qc5 {[%clk 0:00:13.3]} 34. Rd1 {[%clk 0:00:15.4]} 34... Nxe5 {[%clk
0:00:12.7]} 35. Rxe6 {[%clk 0:00:15.9]} 35... Rxd4 {[%clk 0:00:06]} 36. Qf6+
{[%clk 0:00:09.9]} 36... Kg8 {[%clk 0:00:06]} 37. Rxd4 {[%clk 0:00:10.4]} 37...
Qxd4+ {[%clk 0:00:05.4]} 0-1

[Event "Early-Titled-Tuesday-Blitz-February-06-2024"]
[Site "Chess.com"]
[Date "2024.02.06"]
[Round "4"]
[White "Iana_Shirova"]
[Black "MikeSailer"]
[Result "0-1"]
[WhiteElo "2259"]
[BlackElo "2065"]
[TimeControl "180+1"]
[EndTime "8:39:35 PST"]
[Termination "MikeSailer won by checkmate"]

1. e4 {[%clk 0:03:00.9]} 1... d5 {[%clk 0:03:00]} 2. exd5 {[%clk 0:03:00.7]}
2... Qxd5 {[%clk 0:02:59.7]} 3. Nc3 {[%clk 0:03:01.1]} 3... Qd6 {[%clk
0:02:59.9]} 4. d4 {[%clk 0:03:01.6]} 4... c6 {[%clk 0:03:00]} 5. Nf3 {[%clk
0:03:02.1]} 5... Nf6 {[%clk 0:02:59.6]} 6. Ne5 {[%clk 0:03:02]} 6... Nbd7 {[%clk
0:02:49.9]} 7. Bf4 {[%clk 0:02:58.5]} 7... Qb4 {[%clk 0:02:42.4]} 8. Rb1 {[%clk
0:02:48.9]} 8... Nd5 {[%clk 0:02:38.1]} 9. Nd3 {[%clk 0:01:53.2]} 9... Nxc3
{[%clk 0:02:34.1]} 10. bxc3 {[%clk 0:01:53]} 10... Qxc3+ {[%clk 0:02:34]} 11.
Bd2 {[%clk 0:01:53.3]} 11... Qxd4 {[%clk 0:02:33.4]} 12. Be2 {[%clk 0:01:53.7]}
12... e6 {[%clk 0:02:28]} 13. O-O {[%clk 0:01:53.3]} 13... Be7 {[%clk
0:02:26.2]} 14. Rb3 {[%clk 0:01:50.3]} 14... O-O {[%clk 0:02:23.7]} 15. Bc3
{[%clk 0:01:48.8]} 15... Qh4 {[%clk 0:02:21.2]} 16. g3 {[%clk 0:01:47.6]} 16...
Qh6 {[%clk 0:02:17.9]} 17. Bd2 {[%clk 0:01:46.3]} 17... Bg5 {[%clk 0:02:14.8]}
18. f4 {[%clk 0:01:43.9]} 18... Bf6 {[%clk 0:02:12]} 19. g4 {[%clk 0:01:43.9]}
19... Bd4+ {[%clk 0:01:58.4]} 20. Kg2 {[%clk 0:01:39.5]} 20... b6 {[%clk
0:01:53.1]} 21. f5 {[%clk 0:01:07]} 21... Qh4 {[%clk 0:01:45]} 22. Nf4 {[%clk
0:00:51.3]} 22... exf5 {[%clk 0:01:39.8]} 23. Rh3 {[%clk 0:00:50.1]} 23... Qe7
{[%clk 0:01:30]} 24. Bd3 {[%clk 0:00:41.2]} 24... Bb7 {[%clk 0:01:24.8]} 25.
Bxf5 {[%clk 0:00:30.6]} 25... c5+ {[%clk 0:01:24.2]} 26. Kg3 {[%clk 0:00:29.1]}
26... Nf6 {[%clk 0:01:03.3]} 27. g5 {[%clk 0:00:19.7]} 27... Ne4+ {[%clk
0:01:01.9]} 28. Bxe4 {[%clk 0:00:19.9]} 28... Qxe4 {[%clk 0:01:01.3]} 29. Qh5
{[%clk 0:00:20.6]} 29... Rae8 {[%clk 0:00:36.2]} 30. g6 {[%clk 0:00:20.6]} 30...
h6 {[%clk 0:00:28.3]} 31. Rh4 {[%clk 0:00:15.4]} 31... fxg6 {[%clk 0:00:23.1]}
32. Qxg6 {[%clk 0:00:12.9]} 32... Rxf4 {[%clk 0:00:18.2]} 33. Rhxf4 {[%clk
0:00:11.4]} 33... Qg2+ {[%clk 0:00:17]} 34. Kh4 {[%clk 0:00:11.2]} 34... Qxg6
{[%clk 0:00:16.4]} 35. h3 {[%clk 0:00:11.5]} 35... Bf6+ {[%clk 0:00:13.9]} 36.
Rxf6 {[%clk 0:00:11.6]} 36... gxf6 {[%clk 0:00:13.8]} 37. c4 {[%clk 0:00:10.2]}
37... Re4+ {[%clk 0:00:13.5]} 38. Bf4 {[%clk 0:00:09.8]} 38... Qg5# {[%clk
0:00:13]} 0-1

[Event "Early-Titled-Tuesday-Blitz-February-06-2024"]
[Site "Chess.com"]
[Date "2024.02.06"]
[Round "4"]
[White "Cubitas"]
[Black "BigAl"]
[Result "1-0"]
[WhiteElo "2723"]
[BlackElo "2524"]
[TimeControl "180+1"]
[EndTime "8:39:36 PST"]
[Termination "Cubitas won by resignation"]

1. e4 {[%clk 0:03:00.9]} 1... c6 {[%clk 0:02:58.3]} 2. d4 {[%clk 0:02:59.9]}
2... d5 {[%clk 0:02:58.9]} 3. e5 {[%clk 0:02:58.9]} 3... Bf5 {[%clk 0:02:59.5]}
4. Ne2 {[%clk 0:02:57.8]} 4... e6 {[%clk 0:02:42.6]} 5. Ng3 {[%clk 0:02:56.7]}
5... Bg6 {[%clk 0:02:43.1]} 6. h4 {[%clk 0:02:57]} 6... h6 {[%clk 0:02:43.8]} 7.
h5 {[%clk 0:02:56.7]} 7... Bh7 {[%clk 0:02:44.5]} 8. Bd3 {[%clk 0:02:57.3]} 8...
Bxd3 {[%clk 0:02:43.7]} 9. Qxd3 {[%clk 0:02:58.2]} 9... c5 {[%clk 0:02:33.7]}
10. dxc5 {[%clk 0:02:54.9]} 10... Nd7 {[%clk 0:02:33]} 11. Bf4 {[%clk
0:02:47.6]} 11... Nxc5 {[%clk 0:02:12.3]} 12. Qb5+ {[%clk 0:02:45.5]} 12... Qd7
{[%clk 0:02:10]} 13. Qe2 {[%clk 0:02:46.2]} 13... Ne7 {[%clk 0:02:05]} 14. Nc3
{[%clk 0:02:43.9]} 14... Nc6 {[%clk 0:01:55.5]} 15. O-O-O {[%clk 0:02:41.8]}
15... a6 {[%clk 0:01:49.1]} 16. Nge4 {[%clk 0:02:34.4]} 16... Nxe4 {[%clk
0:01:32.5]} 17. Nxe4 {[%clk 0:02:34]} 17... Be7 {[%clk 0:01:33.2]} 18. g4 {[%clk
0:02:26.3]} 18... O-O-O {[%clk 0:01:33.3]} 19. Rh3 {[%clk 0:02:13.2]} 19... Kb8
{[%clk 0:01:32.8]} 20. a3 {[%clk 0:01:49.4]} 20... Ka8 {[%clk 0:01:28.2]} 21.
Kb1 {[%clk 0:01:48.1]} 21... Rc8 {[%clk 0:01:27.8]} 22. c4 {[%clk 0:01:42]}
22... f6 {[%clk 0:00:52.4]} 23. exf6 {[%clk 0:01:37.7]} 23... gxf6 {[%clk
0:00:48.3]} 24. cxd5 {[%clk 0:01:33.9]} 24... exd5 {[%clk 0:00:48.5]} 25. Rhd3
{[%clk 0:01:24.6]} 25... Rhg8 {[%clk 0:00:40.4]} 26. f3 {[%clk 0:01:22.4]} 26...
d4 {[%clk 0:00:40.1]} 27. Ng3 {[%clk 0:01:21.6]} 27... Bd6 {[%clk 0:00:23]} 28.
Bxd6 {[%clk 0:01:19.6]} 28... Qxd6 {[%clk 0:00:23.5]} 29. Nf5 {[%clk 0:01:20.1]}
29... Qf4 {[%clk 0:00:21.4]} 30. Nxd4 {[%clk 0:01:19.9]} 30... Nxd4 {[%clk
0:00:20.4]} 31. Rxd4 {[%clk 0:01:20.1]} 31... Rc1+ {[%clk 0:00:20.2]} 32. Rxc1
{[%clk 0:01:20.3]} 32... Qxd4 {[%clk 0:00:20.9]} 33. Rc7 {[%clk 0:01:08.7]}
33... Rd8 {[%clk 0:00:18.4]} 34. Qc2 {[%clk 0:01:01.5]} 34... Qg1+ {[%clk
0:00:15.8]} 35. Ka2 {[%clk 0:01:01.1]} 35... Qb6 {[%clk 0:00:14.3]} 36. Rc8+
{[%clk 0:00:50.5]} 36... Rxc8 {[%clk 0:00:14.4]} 37. Qxc8+ {[%clk 0:00:51.1]}
37... Ka7 {[%clk 0:00:15.3]} 38. Qc3 {[%clk 0:00:48.5]} 38... Qe6+ {[%clk
0:00:14.3]} 39. Kb1 {[%clk 0:00:48.7]} 39... f5 {[%clk 0:00:12.6]} 40. Qc5+
{[%clk 0:00:46.6]} 40... Ka8 {[%clk 0:00:12.4]} 41. Qxf5 {[%clk 0:00:46.2]}
41... Qb3 {[%clk 0:00:10.8]} 42. Qf8+ {[%clk 0:00:40.5]} 42... Ka7 {[%clk
0:00:11.2]} 43. Qc5+ {[%clk 0:00:41.2]} 43... Ka8 {[%clk 0:00:11.3]} 44. Qf5
{[%clk 0:00:40.8]} 44... Qd1+ {[%clk 0:00:08.7]} 45. Ka2 {[%clk 0:00:40.4]}
45... Qe2 {[%clk 0:00:09.6]} 46. Qf8+ {[%clk 0:00:39.1]} 46... Ka7 {[%clk
0:00:10.1]} 47. Qc5+ {[%clk 0:00:39.5]} 47... Ka8 {[%clk 0:00:10.8]} 48. Qd5
{[%clk 0:00:40.1]} 48... Qe3 {[%clk 0:00:09.7]} 49. g5 {[%clk 0:00:40]} 49...
hxg5 {[%clk 0:00:09.2]} 50. h6 {[%clk 0:00:40.5]} 50... Qe7 {[%clk 0:00:08]} 51.
Qg8+ {[%clk 0:00:37.2]} 51... Ka7 {[%clk 0:00:08]} 52. h7 {[%clk 0:00:37.8]}
52... g4 {[%clk 0:00:08.5]} 53. h8=Q {[%clk 0:00:37.8]} 1-0

[Event "Early-Titled-Tuesday-Blitz-February-06-2024"]
[Site "Chess.com"]
[Date "2024.02.06"]
[Round "4"]
[White "ArturoCaceres"]
[Black "alekroth65"]
[Result "0-1"]
[WhiteElo "2503"]
[BlackElo "2382"]
[TimeControl "180+1"]
[EndTime "8:39:36 PST"]
[Termination "alekroth65 won on time"]

1. e4 {[%clk 0:03:00.9]} 1... e5 {[%clk 0:02:58.6]} 2. Nf3 {[%clk 0:03:01.2]}
2... Nc6 {[%clk 0:02:58.4]} 3. Bb5 {[%clk 0:03:01.2]} 3... a6 {[%clk 0:02:57.3]}
4. Bxc6 {[%clk 0:02:58.6]} 4... dxc6 {[%clk 0:02:54.5]} 5. Nc3 {[%clk
0:02:59.5]} 5... f6 {[%clk 0:02:52.6]} 6. d3 {[%clk 0:03:00.4]} 6... c5 {[%clk
0:02:46.2]} 7. Be3 {[%clk 0:03:01.3]} 7... b6 {[%clk 0:02:43.6]} 8. a4 {[%clk
0:03:01.1]} 8... Ne7 {[%clk 0:02:40.6]} 9. Nd2 {[%clk 0:03:01.3]} 9... Nc6
{[%clk 0:02:38.6]} 10. O-O {[%clk 0:03:01.9]} 10... Be6 {[%clk 0:02:37.8]} 11.
f4 {[%clk 0:03:02.1]} 11... exf4 {[%clk 0:02:34.4]} 12. Bxf4 {[%clk 0:03:03]}
12... Bd6 {[%clk 0:02:33.9]} 13. Bxd6 {[%clk 0:03:00.8]} 13... Qxd6 {[%clk
0:02:33.7]} 14. Nf3 {[%clk 0:02:56.5]} 14... O-O {[%clk 0:02:28.8]} 15. b3
{[%clk 0:02:50.3]} 15... Rad8 {[%clk 0:02:22.8]} 16. Qe1 {[%clk 0:02:48.4]}
16... Nd4 {[%clk 0:02:11.7]} 17. Qf2 {[%clk 0:02:48.7]} 17... Nxf3+ {[%clk
0:02:09.9]} 18. gxf3 {[%clk 0:02:48.7]} 18... f5 {[%clk 0:02:03]} 19. Qe3 {[%clk
0:02:41.6]} 19... f4 {[%clk 0:01:54.9]} 20. Qf2 {[%clk 0:02:37.4]} 20... Bh3
{[%clk 0:01:52.1]} 21. Rfe1 {[%clk 0:02:33]} 21... Rf6 {[%clk 0:01:43.5]} 22.
Kh1 {[%clk 0:02:33]} 22... Rg6 {[%clk 0:01:42.7]} 23. Rg1 {[%clk 0:02:33.3]}
23... Qe5 {[%clk 0:01:36.5]} 24. Ne2 {[%clk 0:02:29.4]} 24... Bg2+ {[%clk
0:01:29.4]} 25. Qxg2 {[%clk 0:02:22.2]} 25... Rxg2 {[%clk 0:01:26.2]} 26. Kxg2
{[%clk 0:02:23.1]} 26... Qb2 {[%clk 0:01:23.4]} 27. Rac1 {[%clk 0:02:20.3]}
27... Rxd3 {[%clk 0:01:22.2]} 28. cxd3 {[%clk 0:01:54.4]} 28... Qxe2+ {[%clk
0:01:21.2]} 29. Kh1 {[%clk 0:01:54.9]} 29... Qxf3+ {[%clk 0:01:17.7]} 30. Rg2
{[%clk 0:01:55.2]} 30... Qxd3 {[%clk 0:01:15.9]} 31. Re1 {[%clk 0:01:53.1]}
31... Kf7 {[%clk 0:01:09.1]} 32. e5 {[%clk 0:01:52.3]} 32... g6 {[%clk
0:01:03.9]} 33. Rf2 {[%clk 0:01:43.9]} 33... g5 {[%clk 0:01:02.2]} 34. e6+
{[%clk 0:01:23.1]} 34... Ke7 {[%clk 0:01:01.2]} 35. Kg1 {[%clk 0:01:15.5]} 35...
f3 {[%clk 0:00:56.8]} 36. h3 {[%clk 0:01:02.4]} 36... h5 {[%clk 0:00:54.9]} 37.
Kh2 {[%clk 0:00:56.6]} 37... Qd6+ {[%clk 0:00:52]} 38. Kh1 {[%clk 0:00:56.9]}
38... g4 {[%clk 0:00:50.5]} 39. hxg4 {[%clk 0:00:35.5]} 39... hxg4 {[%clk
0:00:51.4]} 40. Rh2 {[%clk 0:00:33.6]} 40... Qd3 {[%clk 0:00:50.9]} 41. Rg1
{[%clk 0:00:08.9]} 41... Qe4 {[%clk 0:00:44.4]} 42. Rf2 {[%clk 0:00:06.3]} 42...
Kxe6 {[%clk 0:00:41.6]} 43. Kh2 {[%clk 0:00:06.9]} 43... Qe5+ {[%clk 0:00:36.6]}
44. Rg3 {[%clk 0:00:05.3]} 44... Kf5 {[%clk 0:00:36.2]} 45. Rd2 {[%clk
0:00:03.9]} 45... Qe3 {[%clk 0:00:32.3]} 0-1

[Event "Early-Titled-Tuesday-Blitz-February-06-2024"]
[Site "Chess.com"]
[Date "2024.02.06"]
[Round "4"]
[White "Chesstiger64"]
[Black "viktorgen2021"]
[Result "1-0"]
[WhiteElo "2278"]
[BlackElo "2553"]
[TimeControl "180+1"]
[EndTime "8:39:37 PST"]
[Termination "Chesstiger64 won on time"]

1. d4 {[%clk 0:02:49]} 1... Nf6 {[%clk 0:02:58.9]} 2. Nf3 {[%clk 0:02:48.9]}
2... g6 {[%clk 0:02:57.6]} 3. e3 {[%clk 0:02:48.4]} 3... Bg7 {[%clk 0:02:58.1]}
4. Be2 {[%clk 0:02:48.6]} 4... O-O {[%clk 0:02:58.7]} 5. c4 {[%clk 0:02:49.2]}
5... d6 {[%clk 0:02:59.4]} 6. Nc3 {[%clk 0:02:49.7]} 6... b6 {[%clk 0:03:00]} 7.
O-O {[%clk 0:02:49.8]} 7... Bb7 {[%clk 0:03:00.7]} 8. b4 {[%clk 0:02:50.2]} 8...
a5 {[%clk 0:03:00.3]} 9. bxa5 {[%clk 0:02:49.4]} 9... Rxa5 {[%clk 0:02:59.8]}
10. a4 {[%clk 0:02:49.9]} 10... Nbd7 {[%clk 0:02:54.3]} 11. Nd2 {[%clk
0:02:49.8]} 11... e5 {[%clk 0:02:47.7]} 12. Nb3 {[%clk 0:02:47.1]} 12... Ra8
{[%clk 0:02:47.2]} 13. Bf3 {[%clk 0:02:44.1]} 13... Qc8 {[%clk 0:02:45.2]} 14.
Bb2 {[%clk 0:02:42.3]} 14... Re8 {[%clk 0:02:40.6]} 15. a5 {[%clk 0:02:41.9]}
15... h5 {[%clk 0:02:36.7]} 16. Nb5 {[%clk 0:02:32.9]} 16... h4 {[%clk
0:02:26.9]} 17. h3 {[%clk 0:02:31.6]} 17... g5 {[%clk 0:02:24.5]} 18. axb6
{[%clk 0:02:20.7]} 18... Nxb6 {[%clk 0:02:16.9]} 19. Rxa8 {[%clk 0:02:10.8]}
19... Bxa8 {[%clk 0:02:08.9]} 20. c5 {[%clk 0:02:10.8]} 20... dxc5 {[%clk
0:02:04.3]} 21. Nxc5 {[%clk 0:02:10.9]} 21... Bxf3 {[%clk 0:01:54]} 22. Qxf3
{[%clk 0:02:11.8]} 22... e4 {[%clk 0:01:54.2]} 23. Qe2 {[%clk 0:02:06.4]} 23...
g4 {[%clk 0:01:54]} 24. hxg4 {[%clk 0:01:46.6]} 24... Nxg4 {[%clk 0:01:52.9]}
25. Nc3 {[%clk 0:01:26.2]} 25... h3 {[%clk 0:01:41.7]} 26. N3xe4 {[%clk
0:01:23.7]} 26... hxg2 {[%clk 0:01:27.6]} 27. Kxg2 {[%clk 0:01:23.6]} 27... f5
{[%clk 0:01:06.8]} 28. Ng5 {[%clk 0:01:09.1]} 28... f4 {[%clk 0:01:04.2]} 29.
Qf3 {[%clk 0:00:51.3]} 29... Qf5 {[%clk 0:00:21.3]} 30. exf4 {[%clk 0:00:49.4]}
30... Nd5 {[%clk 0:00:18.6]} 31. Bc1 {[%clk 0:00:30.7]} 31... Bxd4 {[%clk
0:00:14.4]} 32. Nce6 {[%clk 0:00:24.9]} 32... Bb6 {[%clk 0:00:03]} 33. Rd1
{[%clk 0:00:16.6]} 33... Ndf6 {[%clk 0:00:03]} 34. Rd8 {[%clk 0:00:14.8]} 34...
Nxf2 {[%clk 0:00:02.5]} 35. Rxe8+ {[%clk 0:00:13.5]} 35... Nxe8 {[%clk
0:00:03.4]} 36. Kf1 {[%clk 0:00:12.2]} 36... Nd3 {[%clk 0:00:03]} 37. Qg3 {[%clk
0:00:07.8]} 37... Nxc1 {[%clk 0:00:02.4]} 38. Ne4+ {[%clk 0:00:05.4]} 1-0